[Event "Late-Titled-Tuesday-Blitz-October-17-2023"]
[Site "Chess.com"]
[Date "2023.10.17"]
[Round "1"]
[White "esskeettit"]
[Black "Arash_Tahbaz"]
[Result "0-1"]
[WhiteElo "2486"]
[BlackElo "2907"]
[TimeControl "180+1"]
[EndTime "14:06:26 PDT"]
[Termination "Arash_Tahbaz won by resignation"]

1. d4 {[%clk 0:03:00.9]} 1... g6 {[%clk 0:02:59.6]} 2. c4 {[%clk 0:03:00.3]}
2... Bg7 {[%clk 0:02:59.7]} 3. Nc3 {[%clk 0:02:59.3]} 3... d6 {[%clk 0:03:00.1]}
4. e4 {[%clk 0:02:58.5]} 4... e5 {[%clk 0:03:00]} 5. Nf3 {[%clk 0:02:56.9]} 5...
exd4 {[%clk 0:02:59.6]} 6. Nxd4 {[%clk 0:02:56.3]} 6... Nc6 {[%clk 0:03:00.5]}
7. Be3 {[%clk 0:02:50.5]} 7... Nge7 {[%clk 0:03:00.1]} 8. Be2 {[%clk 0:02:46.6]}
8... O-O {[%clk 0:03:00.3]} 9. O-O {[%clk 0:02:46]} 9... f5 {[%clk 0:03:01]} 10.
exf5 {[%clk 0:02:06.5]} 10... Bxd4 {[%clk 0:03:00.5]} 11. Bxd4 {[%clk
0:01:52.4]} 11... Nxf5 {[%clk 0:03:00.7]} 12. Be3 {[%clk 0:01:52.6]} 12... Nxe3
{[%clk 0:03:01]} 13. fxe3 {[%clk 0:01:53.5]} 13... Rxf1+ {[%clk 0:03:01.4]} 14.
Qxf1 {[%clk 0:01:52]} 14... Be6 {[%clk 0:03:01.2]} 15. Qf4 {[%clk 0:01:50.4]}
15... Qe7 {[%clk 0:02:59.6]} 16. Rf1 {[%clk 0:01:48.3]} 16... Ne5 {[%clk
0:02:45.3]} 17. Ne4 {[%clk 0:01:34.5]} 17... Rf8 {[%clk 0:02:38.1]} 18. Qxf8+
{[%clk 0:00:41.4]} 18... Qxf8 {[%clk 0:02:39]} 19. Rxf8+ {[%clk 0:00:41.4]}
19... Kxf8 {[%clk 0:02:39.9]} 20. b3 {[%clk 0:00:41.8]} 20... Ke7 {[%clk
0:02:40.3]} 21. h3 {[%clk 0:00:36.5]} 21... h6 {[%clk 0:02:07]} 22. Kf2 {[%clk
0:00:35.5]} 22... g5 {[%clk 0:02:07.1]} 23. Nc3 {[%clk 0:00:30.8]} 23... c6
{[%clk 0:02:07.5]} 24. e4 {[%clk 0:00:26.6]} 24... Kf6 {[%clk 0:02:00.3]} 25.
Ke3 {[%clk 0:00:26.7]} 25... Ng6 {[%clk 0:02:01]} 26. Bf1 {[%clk 0:00:16.7]}
26... h5 {[%clk 0:02:00.8]} 27. Be2 {[%clk 0:00:16.1]} 27... Nf4 {[%clk
0:01:59.9]} 28. Bf3 {[%clk 0:00:14.8]} 28... Ke5 {[%clk 0:01:54.3]} 29. Nb1
{[%clk 0:00:12]} 29... g4 {[%clk 0:01:49.8]} 30. hxg4 {[%clk 0:00:11.6]} 30...
hxg4 {[%clk 0:01:50.3]} 31. g3 {[%clk 0:00:11.2]} 31... Nh5 {[%clk 0:01:50.9]}
32. Bg2 {[%clk 0:00:09]} 32... Nxg3 {[%clk 0:01:51.5]} 33. Nd2 {[%clk
0:00:09.2]} 33... Nh5 {[%clk 0:01:51.7]} 34. Nf1 {[%clk 0:00:09.2]} 34... Nf4
{[%clk 0:01:50.3]} 35. Bh1 {[%clk 0:00:08.9]} 35... d5 {[%clk 0:01:40.7]} 36.
exd5 {[%clk 0:00:06.4]} 36... cxd5 {[%clk 0:01:41.6]} 37. cxd5 {[%clk
0:00:05.2]} 37... Bxd5 {[%clk 0:01:42.5]} 38. Bxd5 {[%clk 0:00:04.8]} 38...
Nxd5+ {[%clk 0:01:43.4]} 39. Kd3 {[%clk 0:00:04.8]} 39... Nb4+ {[%clk
0:01:42.8]} 40. Kc4 {[%clk 0:00:04.6]} 40... Nxa2 {[%clk 0:01:43.3]} 41. Kc5
{[%clk 0:00:04.5]} 41... Kf4 {[%clk 0:01:39.9]} 42. Kd6 {[%clk 0:00:03.9]} 42...
Kf3 {[%clk 0:01:35]} 43. Kc7 {[%clk 0:00:04]} 43... Kf2 {[%clk 0:01:35.5]} 44.
Nd2 {[%clk 0:00:04.3]} 44... b5 {[%clk 0:01:34]} 45. Kb7 {[%clk 0:00:04.3]}
45... g3 {[%clk 0:01:25.7]} 46. Ne4+ {[%clk 0:00:04.6]} 46... Kf3 {[%clk
0:01:26.1]} 47. Nxg3 {[%clk 0:00:05.5]} 47... Kxg3 {[%clk 0:01:27]} 48. Kxa7
{[%clk 0:00:06.4]} 48... b4 {[%clk 0:01:27.6]} 49. Kb6 {[%clk 0:00:06.5]} 49...
Kf3 {[%clk 0:01:28.5]} 50. Kc5 {[%clk 0:00:06.9]} 50... Ke3 {[%clk 0:01:29.4]}
51. Kc4 {[%clk 0:00:07.2]} 51... Kd2 {[%clk 0:01:30.3]} 0-1

[Event "Late-Titled-Tuesday-Blitz-October-17-2023"]
[Site "Chess.com"]
[Date "2023.10.17"]
[Round "1"]
[White "dodoucb"]
[Black "WilliamAlfaroCaracas"]
[Result "1-0"]
[WhiteElo "2546"]
[BlackElo "2192"]
[TimeControl "180+1"]
[EndTime "14:06:26 PDT"]
[Termination "dodoucb won by checkmate"]

1. d4 {[%clk 0:03:00.9]} 1... Nf6 {[%clk 0:02:59.6]} 2. c4 {[%clk 0:03:00.9]}
2... g6 {[%clk 0:02:59]} 3. Nf3 {[%clk 0:03:01.4]} 3... Bg7 {[%clk 0:02:58.7]}
4. Nc3 {[%clk 0:03:02.3]} 4... d6 {[%clk 0:02:57.6]} 5. e4 {[%clk 0:03:02.5]}
5... O-O {[%clk 0:02:58]} 6. Be2 {[%clk 0:03:03.1]} 6... e5 {[%clk 0:02:56.8]}
7. O-O {[%clk 0:03:04]} 7... Nc6 {[%clk 0:02:54.9]} 8. d5 {[%clk 0:03:04]} 8...
Ne7 {[%clk 0:02:55.1]} 9. Ne1 {[%clk 0:03:04.7]} 9... Nd7 {[%clk 0:02:50.7]} 10.
Nd3 {[%clk 0:03:05.2]} 10... f5 {[%clk 0:02:48.8]} 11. b4 {[%clk 0:03:05.9]}
11... a5 {[%clk 0:02:30.9]} 12. bxa5 {[%clk 0:03:05]} 12... Rxa5 {[%clk
0:02:26.4]} 13. Bd2 {[%clk 0:03:04.2]} 13... b6 {[%clk 0:02:24.9]} 14. a4 {[%clk
0:03:03.2]} 14... Ra8 {[%clk 0:02:22.9]} 15. f3 {[%clk 0:03:00.2]} 15... f4
{[%clk 0:02:10.7]} 16. Be1 {[%clk 0:02:55]} 16... g5 {[%clk 0:02:08.5]} 17. Bf2
{[%clk 0:02:54.6]} 17... h5 {[%clk 0:01:51.9]} 18. a5 {[%clk 0:02:51.6]} 18...
Rxa5 {[%clk 0:01:34.4]} 19. Rxa5 {[%clk 0:02:50.4]} 19... bxa5 {[%clk 0:01:35]}
20. c5 {[%clk 0:02:51.3]} 20... Ba6 {[%clk 0:01:26]} 21. c6 {[%clk 0:02:37.8]}
21... Nb6 {[%clk 0:01:20.3]} 22. Bxb6 {[%clk 0:02:37.2]} 22... cxb6 {[%clk
0:01:20.5]} 23. Qb3 {[%clk 0:02:38.1]} 23... Qc7 {[%clk 0:01:08.4]} 24. Rb1
{[%clk 0:02:27.4]} 24... Rb8 {[%clk 0:01:04.3]} 25. Nb5 {[%clk 0:02:27.2]} 25...
Bxb5 {[%clk 0:01:03.5]} 26. Qxb5 {[%clk 0:02:28.1]} 26... Nc8 {[%clk 0:00:54.5]}
27. Nb2 {[%clk 0:02:25.1]} 27... Na7 {[%clk 0:00:50.8]} 28. Qa6 {[%clk
0:02:12.1]} 28... b5 {[%clk 0:00:47.2]} 29. Ra1 {[%clk 0:02:12.2]} 29... a4
{[%clk 0:00:14.9]} 30. Nd3 {[%clk 0:02:08.8]} 30... Rb6 {[%clk 0:00:13.8]} 31.
Qa5 {[%clk 0:02:08.4]} 31... Rxc6 {[%clk 0:00:13.4]} 32. Qxc7 {[%clk 0:01:47.2]}
32... Rxc7 {[%clk 0:00:12.7]} 33. Nb4 {[%clk 0:01:48.1]} 33... Rc3 {[%clk
0:00:09]} 34. h4 {[%clk 0:01:43.6]} 34... gxh4 {[%clk 0:00:08.1]} 35. Kh2 {[%clk
0:01:44]} 35... h3 {[%clk 0:00:08.1]} 36. Kxh3 {[%clk 0:01:44.1]} 36... Bf6
{[%clk 0:00:08]} 37. Nc6 {[%clk 0:01:30.9]} 37... Nxc6 {[%clk 0:00:06.3]} 38.
dxc6 {[%clk 0:01:31.8]} 38... Rxc6 {[%clk 0:00:06.3]} 39. Bxb5 {[%clk
0:01:31.6]} 39... Rc2 {[%clk 0:00:05.8]} 40. Rxa4 {[%clk 0:01:31]} 40... Kg7
{[%clk 0:00:04.8]} 41. Ra7+ {[%clk 0:01:30.2]} 41... Kg6 {[%clk 0:00:05.4]} 42.
Bd7 {[%clk 0:01:30.5]} 42... Rc1 {[%clk 0:00:05.7]} 43. Bf5+ {[%clk 0:01:30.2]}
43... Kh6 {[%clk 0:00:05.3]} 44. Rh7+ {[%clk 0:01:27.2]} 44... Kg5 {[%clk
0:00:05.9]} 45. Kh2 {[%clk 0:01:27.8]} 45... Kh4 {[%clk 0:00:05.5]} 46. Bg6
{[%clk 0:01:25.7]} 46... Kg5 {[%clk 0:00:05.1]} 47. Bf7 {[%clk 0:01:24.1]} 47...
Rc2 {[%clk 0:00:02.9]} 48. Rxh5# {[%clk 0:01:23.8]} 1-0

[Event "Late-Titled-Tuesday-Blitz-October-17-2023"]
[Site "Chess.com"]
[Date "2023.10.17"]
[Round "1"]
[White "zajka-molotok"]
[Black "talaicito"]
[Result "1-0"]
[WhiteElo "2556"]
[BlackElo "2214"]
[TimeControl "180+1"]
[EndTime "14:06:27 PDT"]
[Termination "zajka-molotok won on time"]

1. e4 {[%clk 0:03:00.9]} 1... c5 {[%clk 0:02:58]} 2. Nf3 {[%clk 0:03:00.6]} 2...
d6 {[%clk 0:02:57.8]} 3. Bb5+ {[%clk 0:03:00.4]} 3... Nd7 {[%clk 0:02:54.7]} 4.
a4 {[%clk 0:02:59.8]} 4... a6 {[%clk 0:02:53.3]} 5. Be2 {[%clk 0:02:59.2]} 5...
Ngf6 {[%clk 0:02:52.4]} 6. Nc3 {[%clk 0:02:58.9]} 6... g6 {[%clk 0:02:52.2]} 7.
O-O {[%clk 0:02:58.5]} 7... Bg7 {[%clk 0:02:52.2]} 8. a5 {[%clk 0:02:57.5]} 8...
O-O {[%clk 0:02:50]} 9. d3 {[%clk 0:02:56.8]} 9... Nb8 {[%clk 0:02:48.4]} 10. e5
{[%clk 0:02:54.1]} 10... dxe5 {[%clk 0:02:44.2]} 11. Nxe5 {[%clk 0:02:55]} 11...
Nfd7 {[%clk 0:02:44.4]} 12. Nc4 {[%clk 0:02:51.2]} 12... Nc6 {[%clk 0:02:40]}
13. Bf3 {[%clk 0:02:37.2]} 13... Nde5 {[%clk 0:02:36.9]} 14. Bxc6 {[%clk
0:02:28.5]} 14... Nxc6 {[%clk 0:02:34.8]} 15. Bf4 {[%clk 0:02:25.8]} 15... e5
{[%clk 0:02:31.2]} 16. Bg3 {[%clk 0:02:24.2]} 16... Be6 {[%clk 0:02:30.7]} 17.
Na4 {[%clk 0:02:13.8]} 17... Bxc4 {[%clk 0:02:23.1]} 18. dxc4 {[%clk 0:02:14.7]}
18... Qe7 {[%clk 0:02:09.5]} 19. Nb6 {[%clk 0:02:11.4]} 19... Rad8 {[%clk
0:02:08.1]} 20. Nd5 {[%clk 0:02:10.6]} 20... Qe6 {[%clk 0:01:43.2]} 21. Qe1
{[%clk 0:02:06.4]} 21... f5 {[%clk 0:01:27.8]} 22. Bh4 {[%clk 0:02:05.2]} 22...
Rd6 {[%clk 0:01:17.8]} 23. f3 {[%clk 0:02:02.1]} 23... h6 {[%clk 0:01:11.8]} 24.
Bf2 {[%clk 0:01:59.8]} 24... Nd4 {[%clk 0:00:44.7]} 25. Qb1 {[%clk 0:01:46.7]}
25... e4 {[%clk 0:00:36.4]} 26. Re1 {[%clk 0:01:43.1]} 26... Rxd5 {[%clk
0:00:32.3]} 27. cxd5 {[%clk 0:01:40.2]} 27... Qxd5 {[%clk 0:00:33.2]} 28. fxe4
{[%clk 0:01:34.1]} 28... fxe4 {[%clk 0:00:34]} 29. Be3 {[%clk 0:01:27.9]} 29...
Qc4 {[%clk 0:00:19.3]} 30. c3 {[%clk 0:01:09.3]} 30... Ne2+ {[%clk 0:00:18.6]}
31. Kh1 {[%clk 0:01:08.5]} 31... Nf4 {[%clk 0:00:12.5]} 32. Bxf4 {[%clk
0:01:06.3]} 32... Rxf4 {[%clk 0:00:11.7]} 33. Qa2 {[%clk 0:01:05.6]} 33... Qxa2
{[%clk 0:00:08.7]} 34. Rxa2 {[%clk 0:01:06.5]} 34... Rf2 {[%clk 0:00:09]} 35. h3
{[%clk 0:00:59.9]} 35... Bxc3 {[%clk 0:00:06.6]} 36. Rxe4 {[%clk 0:00:57.6]} 1-0

[Event "Late-Titled-Tuesday-Blitz-October-17-2023"]
[Site "Chess.com"]
[Date "2023.10.17"]
[Round "1"]
[White "koncheto"]
[Black "TheMagician"]
[Result "1-0"]
[WhiteElo "2541"]
[BlackElo "2175"]
[TimeControl "180+1"]
[EndTime "14:06:27 PDT"]
[Termination "koncheto won on time"]

1. e4 {[%clk 0:03:00.9]} 1... c5 {[%clk 0:02:57.5]} 2. Nf3 {[%clk 0:03:01]} 2...
d6 {[%clk 0:02:56.6]} 3. d4 {[%clk 0:03:01.5]} 3... cxd4 {[%clk 0:02:56.5]} 4.
Nxd4 {[%clk 0:03:02.4]} 4... Nf6 {[%clk 0:02:56.5]} 5. f3 {[%clk 0:03:03]} 5...
a6 {[%clk 0:02:56.7]} 6. c4 {[%clk 0:03:03.3]} 6... g6 {[%clk 0:02:52.9]} 7. Nc3
{[%clk 0:03:03.4]} 7... h5 {[%clk 0:02:51.9]} 8. Be3 {[%clk 0:02:57.2]} 8... Nc6
{[%clk 0:02:48.1]} 9. Nc2 {[%clk 0:02:53.4]} 9... h4 {[%clk 0:02:32.5]} 10. Qd2
{[%clk 0:02:37.1]} 10... Bg7 {[%clk 0:02:20.6]} 11. Be2 {[%clk 0:02:32.5]} 11...
Be6 {[%clk 0:02:08.7]} 12. Rc1 {[%clk 0:02:26.8]} 12... Rc8 {[%clk 0:01:55.4]}
13. O-O {[%clk 0:02:25.3]} 13... Ne5 {[%clk 0:01:42.2]} 14. b3 {[%clk
0:02:25.1]} 14... Qc7 {[%clk 0:01:34]} 15. Nd4 {[%clk 0:02:24.2]} 15... Kf8
{[%clk 0:01:24]} 16. h3 {[%clk 0:02:11.1]} 16... Qa5 {[%clk 0:00:54.5]} 17. Rfd1
{[%clk 0:01:48.3]} 17... Bd7 {[%clk 0:00:47.7]} 18. Qb2 {[%clk 0:01:30.3]} 18...
Be8 {[%clk 0:00:47]} 19. b4 {[%clk 0:01:15.5]} 19... Qc7 {[%clk 0:00:42.2]} 20.
Nd5 {[%clk 0:01:15.6]} 20... Nxd5 {[%clk 0:00:41.3]} 21. cxd5 {[%clk 0:01:16.5]}
21... Qb8 {[%clk 0:00:39.2]} 22. Rxc8 {[%clk 0:01:16]} 22... Qxc8 {[%clk
0:00:38.6]} 23. Rc1 {[%clk 0:01:16.9]} 23... Qb8 {[%clk 0:00:35.5]} 24. Qc2
{[%clk 0:01:10.5]} 24... b5 {[%clk 0:00:17.1]} 25. f4 {[%clk 0:01:05.4]} 25...
Nd7 {[%clk 0:00:15.4]} 26. Nc6 {[%clk 0:01:05.7]} 26... Qa8 {[%clk 0:00:13.6]}
27. a4 {[%clk 0:01:02.6]} 27... f6 {[%clk 0:00:04.9]} 28. axb5 {[%clk 0:00:53]}
28... axb5 {[%clk 0:00:05]} 29. Bxb5 {[%clk 0:00:53.9]} 29... Qa3 {[%clk
0:00:05.2]} 30. Qd3 {[%clk 0:00:50.6]} 1-0

[Event "Late-Titled-Tuesday-Blitz-October-17-2023"]
[Site "Chess.com"]
[Date "2023.10.17"]
[Round "1"]
[White "DarkAlekhine"]
[Black "tylityli"]
[Result "1-0"]
[WhiteElo "2675"]
[BlackElo "2352"]
[TimeControl "180+1"]
[EndTime "14:06:28 PDT"]
[Termination "DarkAlekhine won by resignation"]

1. e4 {[%clk 0:03:00.9]} 1... e5 {[%clk 0:02:50.1]} 2. Nf3 {[%clk 0:03:00.3]}
2... Nc6 {[%clk 0:02:45.4]} 3. Bc4 {[%clk 0:03:00.2]} 3... Nf6 {[%clk
0:02:44.4]} 4. d3 {[%clk 0:03:00.4]} 4... Be7 {[%clk 0:02:40.9]} 5. O-O {[%clk
0:02:59.9]} 5... O-O {[%clk 0:02:41.8]} 6. a4 {[%clk 0:03:00.2]} 6... a6 {[%clk
0:02:41.3]} 7. a5 {[%clk 0:03:00.2]} 7... d5 {[%clk 0:02:38.6]} 8. exd5 {[%clk
0:02:58.4]} 8... Nxd5 {[%clk 0:02:38.7]} 9. Re1 {[%clk 0:02:57.8]} 9... Bf6
{[%clk 0:02:37.3]} 10. Nbd2 {[%clk 0:02:53.3]} 10... Bg4 {[%clk 0:02:33.3]} 11.
h3 {[%clk 0:02:53.4]} 11... Bh5 {[%clk 0:02:33]} 12. c3 {[%clk 0:02:46.7]} 12...
Re8 {[%clk 0:02:25.3]} 13. Ne4 {[%clk 0:02:46.4]} 13... Be7 {[%clk 0:02:24.4]}
14. Ng3 {[%clk 0:02:44]} 14... Bxf3 {[%clk 0:01:49.2]} 15. Qxf3 {[%clk
0:02:44.9]} 15... Nf6 {[%clk 0:01:39.7]} 16. Nf5 {[%clk 0:02:44.8]} 16... Bf8
{[%clk 0:01:39]} 17. Bg5 {[%clk 0:02:44.7]} 17... Be7 {[%clk 0:01:12.5]} 18. Bh6
{[%clk 0:01:38.7]} 18... Bf8 {[%clk 0:00:54.8]} 19. Bxg7 {[%clk 0:01:22]} 19...
Bxg7 {[%clk 0:00:53.2]} 20. Qg3 {[%clk 0:01:22.1]} 20... Nh5 {[%clk 0:00:48.6]}
21. Qg4 {[%clk 0:01:22.5]} 21... Qf6 {[%clk 0:00:43]} 22. Qxh5 {[%clk
0:01:19.2]} 22... Qg6 {[%clk 0:00:43.1]} 23. Qf3 {[%clk 0:01:19.2]} 23... Ne7
{[%clk 0:00:27.4]} 24. Nxe7+ {[%clk 0:01:17]} 24... Rxe7 {[%clk 0:00:27.3]} 25.
Qxb7 {[%clk 0:01:17.5]} 25... Rae8 {[%clk 0:00:17.1]} 26. Qxa6 {[%clk 0:01:11]}
26... Qg5 {[%clk 0:00:12.8]} 27. Re3 {[%clk 0:01:03.4]} 27... e4 {[%clk
0:00:10.1]} 28. dxe4 {[%clk 0:00:46.6]} 28... Rxe4 {[%clk 0:00:11]} 29. Rxe4
{[%clk 0:00:44.6]} 29... Rxe4 {[%clk 0:00:10.8]} 30. Qa8+ {[%clk 0:00:44.9]} 1-0

[Event "Late-Titled-Tuesday-Blitz-October-17-2023"]
[Site "Chess.com"]
[Date "2023.10.17"]
[Round "1"]
[White "protectiago"]
[Black "Zq1"]
[Result "0-1"]
[WhiteElo "2080"]
[BlackElo "2524"]
[TimeControl "180+1"]
[EndTime "14:06:30 PDT"]
[Termination "Zq1 won by resignation"]

1. d4 {[%clk 0:01:20.3]} 1... Nf6 {[%clk 0:02:57.8]} 2. c4 {[%clk 0:01:20.3]}
2... a6 {[%clk 0:02:58]} 3. g3 {[%clk 0:01:20.4]} 3... c5 {[%clk 0:02:57.9]} 4.
d5 {[%clk 0:01:20.5]} 4... b5 {[%clk 0:02:57.5]} 5. cxb5 {[%clk 0:01:21.1]} 5...
Bb7 {[%clk 0:02:53.8]} 6. Bg2 {[%clk 0:01:17.7]} 6... e6 {[%clk 0:02:52.7]} 7.
bxa6 {[%clk 0:01:18]} 7... Bxd5 {[%clk 0:02:49]} 8. Nf3 {[%clk 0:01:10.2]} 8...
Nxa6 {[%clk 0:02:47.2]} 9. O-O {[%clk 0:01:10.5]} 9... Be7 {[%clk 0:02:47.1]}
10. Nc3 {[%clk 0:01:10.2]} 10... Bc6 {[%clk 0:02:47.2]} 11. Re1 {[%clk 0:00:43]}
11... O-O {[%clk 0:02:32.8]} 12. e4 {[%clk 0:00:42.7]} 12... Nb4 {[%clk
0:02:32.6]} 13. a3 {[%clk 0:00:41.3]} 13... c4 {[%clk 0:02:32.4]} 14. Bf4 {[%clk
0:00:39.9]} 14... Nd3 {[%clk 0:02:31.7]} 15. Re2 {[%clk 0:00:39]} 15... Nxf4
{[%clk 0:02:10.8]} 16. gxf4 {[%clk 0:00:39]} 16... d5 {[%clk 0:02:10.8]} 17. e5
{[%clk 0:00:39.3]} 17... Nh5 {[%clk 0:02:04.9]} 18. Nd4 {[%clk 0:00:37.6]} 18...
Bb7 {[%clk 0:02:01.3]} 19. Qd2 {[%clk 0:00:27.9]} 19... g6 {[%clk 0:01:59.4]}
20. Rd1 {[%clk 0:00:24.4]} 20... Qb6 {[%clk 0:01:53.5]} 21. Nf3 {[%clk
0:00:18.4]} 21... Rfd8 {[%clk 0:01:43.7]} 22. Nd4 {[%clk 0:00:15.3]} 22... Bc5
{[%clk 0:01:39.2]} 23. Bf3 {[%clk 0:00:14.2]} 23... Ng7 {[%clk 0:01:35.8]} 24.
Kg2 {[%clk 0:00:12.7]} 24... Bxd4 {[%clk 0:01:32.6]} 25. Qxd4 {[%clk 0:00:13.1]}
25... Qxd4 {[%clk 0:01:32.7]} 26. Rxd4 {[%clk 0:00:13.7]} 26... Nf5 {[%clk
0:01:32.9]} 27. Rd1 {[%clk 0:00:14.6]} 27... Nh4+ {[%clk 0:01:29.2]} 28. Kg3
{[%clk 0:00:13.9]} 28... Nxf3 {[%clk 0:01:29]} 29. Kxf3 {[%clk 0:00:14.1]} 29...
d4+ {[%clk 0:01:27.4]} 30. Ne4 {[%clk 0:00:14.8]} 30... d3 {[%clk 0:01:25]} 31.
Re3 {[%clk 0:00:14.7]} 31... Rd4 {[%clk 0:01:18.5]} 32. Rde1 {[%clk 0:00:14.3]}
32... Rad8 {[%clk 0:01:12.3]} 33. h4 {[%clk 0:00:13.1]} 33... d2 {[%clk
0:01:08.1]} 34. Rd1 {[%clk 0:00:13.6]} 34... Rxe4 {[%clk 0:01:07.9]} 35. Rxe4
{[%clk 0:00:14]} 35... Rd4 {[%clk 0:01:08]} 36. Ke3 {[%clk 0:00:12.8]} 36...
Rd3+ {[%clk 0:01:03.3]} 0-1

[Event "Late-Titled-Tuesday-Blitz-October-17-2023"]
[Site "Chess.com"]
[Date "2023.10.17"]
[Round "1"]
[White "CarrotsandPizza"]
[Black "sofaceindisguise"]
[Result "0-1"]
[WhiteElo "2438"]
[BlackElo "2810"]
[TimeControl "180+1"]
[EndTime "14:06:31 PDT"]
[Termination "sofaceindisguise won on time"]

1. e4 {[%clk 0:03:00.9]} 1... c5 {[%clk 0:02:57.4]} 2. Nf3 {[%clk 0:03:00]} 2...
e6 {[%clk 0:02:57.7]} 3. d4 {[%clk 0:02:59.9]} 3... cxd4 {[%clk 0:02:58.6]} 4.
Nxd4 {[%clk 0:02:59.9]} 4... Bc5 {[%clk 0:02:59.2]} 5. Nb3 {[%clk 0:02:56.9]}
5... Be7 {[%clk 0:02:58.5]} 6. c4 {[%clk 0:02:57.2]} 6... Nc6 {[%clk 0:02:58.2]}
7. Nc3 {[%clk 0:02:56.9]} 7... Nf6 {[%clk 0:02:58.6]} 8. Bd3 {[%clk 0:02:56.9]}
8... O-O {[%clk 0:02:59]} 9. O-O {[%clk 0:02:56.9]} 9... d6 {[%clk 0:02:59.3]}
10. Be3 {[%clk 0:02:56.3]} 10... a6 {[%clk 0:02:59.1]} 11. f3 {[%clk 0:02:56.5]}
11... Bd7 {[%clk 0:02:55.6]} 12. Qd2 {[%clk 0:02:56.3]} 12... Na5 {[%clk
0:02:52.4]} 13. Nc1 {[%clk 0:02:50.2]} 13... Rc8 {[%clk 0:02:50.3]} 14. b3
{[%clk 0:02:47.3]} 14... Nc6 {[%clk 0:02:48.6]} 15. N1e2 {[%clk 0:02:45.7]}
15... Qc7 {[%clk 0:02:47.7]} 16. Rfc1 {[%clk 0:02:45.1]} 16... Qb8 {[%clk
0:02:47.2]} 17. Kh1 {[%clk 0:02:41.2]} 17... Ne5 {[%clk 0:02:45.5]} 18. Bc2
{[%clk 0:02:40.1]} 18... b5 {[%clk 0:02:44]} 19. cxb5 {[%clk 0:02:39.2]} 19...
axb5 {[%clk 0:02:43.9]} 20. a4 {[%clk 0:02:27.7]} 20... b4 {[%clk 0:02:41.7]}
21. Na2 {[%clk 0:02:21.5]} 21... d5 {[%clk 0:02:41.5]} 22. Bf4 {[%clk
0:02:03.1]} 22... Bd6 {[%clk 0:02:36.8]} 23. Bd1 {[%clk 0:01:46]} 23... dxe4
{[%clk 0:02:31.5]} 24. Nd4 {[%clk 0:01:33.4]} 24... Rfd8 {[%clk 0:02:27.9]} 25.
Bg5 {[%clk 0:01:26.3]} 25... exf3 {[%clk 0:02:23.6]} 26. Nxf3 {[%clk 0:01:26.3]}
26... Nxf3 {[%clk 0:02:22.9]} 27. Bxf3 {[%clk 0:01:26.5]} 27... Bxh2 {[%clk
0:02:16.5]} 28. Rxc8 {[%clk 0:01:24.9]} 28... Qxc8 {[%clk 0:02:11.4]} 29. Bxf6
{[%clk 0:01:20.9]} 29... gxf6 {[%clk 0:02:10.3]} 30. Kxh2 {[%clk 0:01:20.7]}
30... Bxa4 {[%clk 0:02:08.7]} 31. Qxb4 {[%clk 0:01:12.6]} 31... Qc7+ {[%clk
0:02:06.8]} 32. Kh1 {[%clk 0:01:10.8]} 32... Be8 {[%clk 0:01:54.1]} 33. Rc1
{[%clk 0:00:52.1]} 33... Qe5 {[%clk 0:01:50.5]} 34. Qe7 {[%clk 0:00:52]} 34...
Rb8 {[%clk 0:01:47.1]} 35. Nc3 {[%clk 0:00:47.1]} 35... Rc8 {[%clk 0:01:44.2]}
36. Ne2 {[%clk 0:00:10.5]} 36... Rb8 {[%clk 0:01:39.8]} 37. Nc3 {[%clk
0:00:03.8]} 37... Kg7 {[%clk 0:01:35.5]} 38. Ne4 {[%clk 0:00:04]} 38... h6
{[%clk 0:01:16.8]} 39. Rc7 {[%clk 0:00:03.8]} 39... Rxb3 {[%clk 0:01:08.6]} 0-1

[Event "Late-Titled-Tuesday-Blitz-October-17-2023"]
[Site "Chess.com"]
[Date "2023.10.17"]
[Round "1"]
[White "topin8"]
[Black "vugarrasulov"]
[Result "0-1"]
[WhiteElo "2500"]
[BlackElo "2961"]
[TimeControl "180+1"]
[EndTime "14:06:34 PDT"]
[Termination "vugarrasulov won on time"]

1. e4 {[%clk 0:02:55.9]} 1... c5 {[%clk 0:02:59.7]} 2. Nf3 {[%clk 0:02:55.4]}
2... e6 {[%clk 0:03:00.3]} 3. c3 {[%clk 0:02:55.5]} 3... d5 {[%clk 0:02:58]} 4.
e5 {[%clk 0:02:55.2]} 4... d4 {[%clk 0:02:57.2]} 5. d3 {[%clk 0:02:42.1]} 5...
Nc6 {[%clk 0:02:56.3]} 6. g3 {[%clk 0:02:42.2]} 6... Nge7 {[%clk 0:02:51.5]} 7.
Bg2 {[%clk 0:02:15.8]} 7... Ng6 {[%clk 0:02:51.7]} 8. Qe2 {[%clk 0:02:16.4]}
8... Qc7 {[%clk 0:02:51.2]} 9. cxd4 {[%clk 0:01:52.7]} 9... cxd4 {[%clk
0:02:52.1]} 10. O-O {[%clk 0:01:53]} 10... Be7 {[%clk 0:02:25.2]} 11. Re1 {[%clk
0:01:47]} 11... O-O {[%clk 0:02:24.2]} 12. Nbd2 {[%clk 0:01:45.2]} 12... Nb4
{[%clk 0:02:15]} 13. Nxd4 {[%clk 0:01:41.4]} 13... Rd8 {[%clk 0:02:02.7]} 14. a3
{[%clk 0:01:20.3]} 14... Rxd4 {[%clk 0:01:55.8]} 15. axb4 {[%clk 0:01:20.7]}
15... Bxb4 {[%clk 0:01:56.5]} 16. Nb3 {[%clk 0:01:12.9]} 16... Rd8 {[%clk
0:01:32.7]} 17. Bg5 {[%clk 0:01:08.1]} 17... Bxe1 {[%clk 0:01:26.8]} 18. Bxd8
{[%clk 0:01:07.1]} 18... Bxf2+ {[%clk 0:01:27.2]} 19. Kxf2 {[%clk 0:01:04.1]}
19... Qxd8 {[%clk 0:01:28.1]} 20. d4 {[%clk 0:01:00.2]} 20... h6 {[%clk
0:01:23.4]} 21. Qc4 {[%clk 0:00:18.2]} 21... Qb6 {[%clk 0:01:16.1]} 22. Qc3
{[%clk 0:00:14.1]} 22... Bd7 {[%clk 0:01:10.6]} 23. Nc5 {[%clk 0:00:11.9]} 23...
Bc6 {[%clk 0:01:11]} 24. Bf1 {[%clk 0:00:08.1]} 24... Bd5 {[%clk 0:01:06.8]} 25.
b4 {[%clk 0:00:08]} 25... a6 {[%clk 0:01:01]} 26. Bd3 {[%clk 0:00:08.2]} 26...
Rd8 {[%clk 0:00:56.9]} 27. Bxg6 {[%clk 0:00:04.7]} 27... fxg6 {[%clk 0:00:57.8]}
28. Ke3 {[%clk 0:00:03.2]} 28... Rf8 {[%clk 0:00:56.1]} 29. Kd2 {[%clk 0:00:03]}
29... Qb5 {[%clk 0:00:54.5]} 30. Re1 {[%clk 0:00:02.2]} 30... Rf2+ {[%clk
0:00:51.1]} 31. Kc1 {[%clk 0:00:02.8]} 31... Rxh2 {[%clk 0:00:48.2]} 32. Qd3
{[%clk 0:00:01.7]} 32... Qxb4 {[%clk 0:00:47.5]} 0-1